Cogmind - Beta 17.1 @@@ ROGUE MODE // 2026.09.09 @ 22:58:59 Player: McSaucyNugget Result: Destroyed by S-10 Pest with Light Assault Rifle Performance ------------- Evolutions (1) 500 Regions Visited (4) 800 Robots Destroyed (1) 5 Value Destroyed (16) 16 Prototype IDs (0) 0 Alien Tech Used (0) 0 Bonus (200) 200 TOTAL SCORE: 1521 Bonus ------- Pacifist 200 Cogmind --------- Core Integrity 0/400 Matter 300/300 Energy 99/100 System Corruption 1% Temperature Cool (9) Movement Core (50) Location -9/Mines Parts ------- > --- POWER (1) -------- (None) > --- PROPULSION (2) --- (None) > --- UTILITY (4) ------ (None) > --- WEAPON (2) ------- (None) > --- INVENTORY (5) ---- High-capacity Matter Pod (41) Hacking Suite Hacking Suite Hacking Suite Hacking Suite Peak State ------------ > --- POWER ------------ (None) > --- PROPULSION ------- Light Treads Light Treads > --- UTILITY ---------- (None) > --- WEAPON ----------- Makeshift Axe > --- INVENTORY -------- High-capacity Matter Pod Hacking Suite Hacking Suite Hacking Suite [Rating: 7] Favorites ----------- Power Light Ion Engine Engine Light Ion Engine Propulsion Light Treads Treads Light Treads Hover Unit Combat Airjet Utility None Weapon Makeshift Axe Slashing Weapon Makeshift Axe Build | -11 -10 -10 -9 -9 ------- Run | Yrd Mat Min Mat Min Slots Evolved 2 | . . . 2 . Power . | . . . . . Propulsion . | . . . . . Utility 2 | . . . 2 . Weapon . | . . . . . Parts Attached 5 | 3 . . 1 1 Power 1 | 1 . . . . Engine 1 | 1 . . . . Core . | . . . . . Reactor . | . . . . . Propulsion 3 | 2 . . . 1 Treads 2 | 2 . . . . Leg . | . . . . . Wheel . | . . . . . Hover 1 | . . . . 1 Flight . | . . . . . Utility . | . . . . . Device . | . . . . . Storage . | . . . . . Processor . | . . . . . Hackware . | . . . . . Protection . | . . . . . Artifact . | . . . . . Weapon 1 | . . . 1 . Energy Gun . | . . . . . Energy Cannon . | . . . . . Ballistic Gun . | . . . . . Ballistic Cannon . | . . . . . Launcher . | . . . . . Special Weapon . | . . . . . Impact Weapon . | . . . . . Slashing Weapon 1 | . . . 1 . Piercing Weapon . | . . . . . Special Melee Weapon . | . . . . . Unidentified Prototypes . | . . . . . Parts Lost 4 | . . . . 4 Power . | . . . . . Propulsion 3 | . . . . 3 Utility . | . . . . . Weapon 1 | . . . . 1 Highest Loss Streak 3 | . . . . 3 To Critical Strikes . | . . . . . Average Backups 3 | . 2 4 4 5 Power . | . 1 1 . . Propulsion . | . . . . . Utility 2 | . . 1 3 5 Weapon . | . 1 2 1 . Tool/Special . | . . . . . Unused Backups 8 | . . . 3 5 Power 1 | . . . 1 . Propulsion . | . . . . . Utility 5 | . . . . 5 Weapon 2 | . . . 2 . Tool/Special . | . . . . . Average Slot Usage (%) 31 | . 42 42 31 19 Engine 6 | . 14 14 3 . Treads 19 | . 28 28 22 9 Hover 2 | . . . . 5 Slashing Weapon 2 | . . . 5 4 Peak Build Rating 7 | 3 3 3 7 7 Average Rating 4 | 2 3 3 5 6 On Entrance 3 | . 3 3 3 7 Avg Prop Armor Cover (%) 31 | 34 34 34 37 27 Naked Turns 9 | . . . . 9 Heaviest Build 3 | 3 3 3 3 3 Greatest Support 40 | 40 3 3 3 3 Greatest Overweight (x) . | . . . . . Average Overweight (x) . | . . . . . Largest Inventory Capacity 5 | 5 5 5 5 5 Average Capacity 5 | 5 5 5 5 5 Most Carried 5 | 1 4 5 5 5 Average Carried 3 | . 2 4 4 5 Final Capacity 5 | 5 5 5 5 5 Final Carried 5 | 1 4 5 5 5 Class Distribution -------------------- 100% | Mutant Dominant Class ---------------- Mutant | -10/Materials Mutant | -10/Mines Mutant | -9/Materials Mutant | -9/Mines Resources | -11 -10 -10 -9 -9 ----------- Run | Yrd Mat Min Mat Min Matter Collected 257 | 162 . . 18 77 Remotely . | . . . . . Salvage Created 18 | . . . 18 . Parts 2 | . . . 2 . Haulers Intercepted . | . . . . . Recyclers Shooed . | . . . . . Parts Field Recycled . | . . . . . Retrieved Matter . | . . . . . Parts Self-Destructed . | . . . . . Prevented . | . . . . . Parts Restored . | . . . . . Kills | -11 -10 -10 -9 -9 ------- Run | Yrd Mat Min Mat Min Combat Hostiles Destroyed . | . . . . . Classes Destroyed 1 | . . . 1 . Watcher 1 | . . . 1 . Best Kill Streak 1 | . . . 1 . Combat Bots Only . | . . . . . Max Kills in Single Turn 1 | . . . 1 . Gunslinging . | . . . . . Exploded . | . . . . . Melee . | . . . . . Uniques/NPCs Destroyed . | . . . . . Combat | -11 -10 -10 -9 -9 -------- Run | Yrd Mat Min Mat Min Hostile Shots Fired 92 | . 4 . 1 87 Missed 33 | . 3 . . 30 Hits 59 | . 1 . 1 57 Melee 5 | . . . . 5 Projectile 54 | . 1 . 1 52 AOE 3 | . . . . 3 Critical Strikes 1 | . . . . 1 Damage Taken 810 | . 17 . 10 783 Core 408 | . . . . 408 Absorbed by Shields . | . . . . . Core Remaining (%) 100 | 100 . 100 . . Volleys Fired . | . . . . . Largest . | . . . . . Hottest . | . . . . . Shots Fired . | . . . . . Gun . | . . . . . Cannon . | . . . . . Launcher . | . . . . . Special . | . . . . . Kinetic . | . . . . . Thermal . | . . . . . Explosive . | . . . . . Electromagnetic . | . . . . . Robot Hit Streak . | . . . . . Robot Miss Streak . | . . . . . Penetration Max . | . . . . . Secondary Targets . | . . . . . Shots Hit Robots 1 | . . . 1 . Core Hits 3 | . . . 1 2 Critical Kills . | . . . . . Critical Parts Destroyed . | . . . . . Critical Strikes . | . . . . . Melee Attacks 1 | . . . 1 . Impact . | . . . . . Slashing 1 | . . . 1 . Piercing . | . . . . . Sneak Attacks . | . . . . . Combat Hostiles . | . . . . . Follow-up Attacks . | . . . . . Damage Inflicted 74 | . . . 50 24 Guns . | . . . . . Cannons . | . . . . . Explosions . | . . . . . Melee 50 | . . . 50 . Ramming 24 | . . . . 24 Kinetic . | . . . . . Thermal . | . . . . . Explosive . | . . . . . Electromagnetic . | . . . . . Impact . | . . . . . Slashing 50 | . . . 50 . Piercing . | . . . . . Highest Corruption 1 | . . . . 1 Average Corruption 1 | . . . . 1 Corruption Purged . | . . . . . Corruption Blocked . | . . . . . Effects 2 | . . . . 2 Message Errors 1 | . . . . 1 Data Loss (minor) 1 | . . . . 1 Overload Shots . | . . . . . Overflow Damage . | . . . . . Projectiles . | . . . . . Explosions . | . . . . . Melee . | . . . . . Knockbacks . | . . . . . Impact . | . . . . . Kinetic . | . . . . . Secondary . | . . . . . Self-Inflicted Damage 10 | . . . . 10 Shots . | . . . . . Rammed 5 | . . . . 5 Targets Rammed 5 | . . . . 5 Kicked . | . . . . . Crushed . | . . . . . Highest Temperature 32 | . . . . 32 Average Temperature 22 | . . . . 22 Received Heat Transfer 237 | . 9 . 6 222 Siege Activations . | . . . . . Martial Activations . | . . . . . Shielding Activations . | . . . . . Robots Disrupted . | . . . . . Combat Hostiles . | . . . . . Robots Corrupted . | . . . . . Combat Hostiles . | . . . . . Parts Fried . | . . . . . Impact Corruptions . | . . . . . Robots Melted . | . . . . . Combat Hostiles . | . . . . . Parts Melted . | . . . . . Heat Transferred . | . . . . . Parts Sabotaged . | . . . . . Parts Stolen . | . . . . . Parts Stripped . | . . . . . Power Chain Reactions . | . . . . . Alert | -11 -10 -10 -9 -9 ------- Run | Yrd Mat Min Mat Min Maximum Alert Level . | . . . . . Low Security (%) 100 | 100 100 100 100 100 Level 1 . | . . . . . Level 2 . | . . . . . Level 3 . | . . . . . Level 4 . | . . . . . Level 5 . | . . . . . High Security . | . . . . . Max Security . | . . . . . Peak Influence 50 | . . . 7 50 Initial . | . . . . . Average 2 | . . . 1 7 Influence Increases 67 | . . . 7 60 Destroy 0b10 Robot/NC 5 | . . . 5 . Destroy Leader 2 | . . . 2 . Lose Combat Pursuer 60 | . . . . 60 Influence Decreases 37 | . . . 7 30 Time Decay 27 | . . . 7 20 Lost Part 10 | . . . . 10 Squads Dispatched . | . . . . . Investigation . | . . . . . Extermination . | . . . . . Reinforcement . | . . . . . Assault . | . . . . . Garrison . | . . . . . Intercept . | . . . . . Searches Triggered . | . . . . . Construction Impeded . | . . . . . Haulers Reinforced . | . . . . . Active Scanning Responses . | . . . . . Cargo Convoy Interrupts . | . . . . . Stealth | -11 -10 -10 -9 -9 --------- Run | Yrd Mat Min Mat Min Distress Signals 1 | . . . 1 . Communications Jammed . | . . . . . Distress Signals . | . . . . . Times Spotted 40 | . 5 . 6 29 Peak Tracking Total 20 | . 7 . 6 20 Tactical Retreats 3 | . . . . 3 Traps | -11 -10 -10 -9 -9 ------- Run | Yrd Mat Min Mat Min Traps Triggered . | . . . . . Indirectly . | . . . . . Trap Hack Attempts . | . . . . . Triggered . | . . . . . Disarmed . | . . . . . Reprogrammed . | . . . . . Reused . | . . . . . Traps Extracted . | . . . . . Installed . | . . . . . Triggered . | . . . . . Machines | -11 -10 -10 -9 -9 ---------- Run | Yrd Mat Min Mat Min Machines Disabled . | . . . . . Max in Single Turn . | . . . . . Machines Repaired . | . . . . . Machines Dismantled . | . . . . . Machines Sabotaged . | . . . . . Overloaded Fab Kills . | . . . . . Hacking | -11 -10 -10 -9 -9 --------- Run | Yrd Mat Min Mat Min Machines Accessed . | . . . . . Terminals . | . . . . . Fabricators . | . . . . . Repair Stations . | . . . . . Recycling Units . | . . . . . Scanalyzers . | . . . . . Garrison Access . | . . . . . Total Hacks . | . . . . . Successful . | . . . . . Failed . | . . . . . Catastrophic . | . . . . . Database Lockouts . | . . . . . Manual . | . . . . . Terminals . | . . . . . Fabricators . | . . . . . Repair Stations . | . . . . . Recycling Units . | . . . . . Scanalyzers . | . . . . . Garrison Access . | . . . . . Terminal Hacks . | . . . . . Fabricator Hacks . | . . . . . Repair Station Hacks . | . . . . . Recycling Unit Hacks . | . . . . . Scanalyzer . | . . . . . Garrison Access Hacks . | . . . . . Unauthorized Hacks . | . . . . . Terminals . | . . . . . Fabricators . | . . . . . Repair Stations . | . . . . . Recycling Units . | . . . . . Scanalyzers . | . . . . . Garrison Access . | . . . . . Data Cores Recovered . | . . . . . Used . | . . . . . Hacking Detections . | . . . . . Full Trace Events . | . . . . . Feedback Events . | . . . . . Feedback Blocked . | . . . . . Robot Schematics Acquired . | . . . . . Robots Built . | . . . . . Authchips . | . . . . . Time . | . . . . . Total Robot Build Rating . | . . . . . Part Schematics Acquired . | . . . . . Parts Built . | . . . . . Authchips . | . . . . . Time . | . . . . . Total Part Build Rating . | . . . . . Part Studies Acquired . | . . . . . Parts Repaired . | . . . . . Time . | . . . . . Parts Recycled . | . . . . . Recycled Matter . | . . . . . Retrieved Matter . | . . . . . Retrieved Components . | . . . . . Parts Scanalyzed . | . . . . . Part Schematics Acquired . | . . . . . Parts Damaged . | . . . . . Bothacking | -11 -10 -10 -9 -9 ------------ Run | Yrd Mat Min Mat Min Used RIF Installer . | . . . . . Robots Hacked . | . . . . . Non-combat . | . . . . . Combat . | . . . . . Robot Hacks Applied . | . . . . . Relay Couplers Released . | . . . . . Fabnet Peak Effective % . | . . . . . Robots Rewired . | . . . . . Allies Hacked . | . . . . . Hacks Repelled . | . . . . . Allies | -11 -10 -10 -9 -9 -------- Run | Yrd Mat Min Mat Min Total Allies . | . . . . . Largest Group . | . . . . . Highest-Rated Group . | . . . . . Highest-Rated Ally . | . . . . . Total Orders . | . . . . . Ally Attacks . | . . . . . Total Damage . | . . . . . Kills . | . . . . . Allies Corrupted . | . . . . . Allies Melted . | . . . . . Intel | -11 -10 -10 -9 -9 ------- Run | Yrd Mat Min Mat Min Active Infowar (turns) . | . . . . . Robot Analysis Total . | . . . . . Derelict Logs Recovered . | . . . . . Drone Launches . | . . . . . Drone Recoveries . | . . . . . Exploration | -11 -10 -10 -9 -9 ------------- Run | Yrd Mat Min Mat Min Turns Passed 435 | 40 64 114 57 160 Spaces Moved 801 | 58 121 221 95 306 Core 796 | 53 121 221 95 306 Treads 5 | 5 . . . . Legs . | . . . . . Wheels . | . . . . . Hover . | . . . . . Flight . | . . . . . Fastest Speed 50 | 50 50 50 50 50 Average Speed 50 | 59 50 50 50 50 Slowest Speed 160 | 160 50 50 50 50 Overloaded Moves . | . . . . . Propulsion Burnouts . | . . . . . Robots Hopped . | . . . . . Potential Cave-ins . | . . . . . Cave-ins Triggered . | . . . . . Exploration Rate (%) 33 | 3 39 41 15 67 Regions Visited 4 Branch Regions 2 Pre-discovered Areas 1 | . . 1 . . Known Exits Taken . | . . . . . Unknown Exits Taken 4 | 1 1 1 1 . Scrap Searched 2 | . . 1 . 1 Spaces Dug . | . . . . . Terrain Destroyed . | . . . . . Melee . | . . . . . Projectile . | . . . . . AOE . | . . . . . Terrain Rammed . | . . . . . Walls Destroyed . | . . . . . Machines Disabled . | . . . . . Actions | -11 -10 -10 -9 -9 --------- Run | Yrd Mat Min Mat Min Total 823 | 61 123 223 104 312 Wait 2 | . . 2 . . Move 797 | 57 120 220 94 306 Hop . | . . . . . Pick Up 9 | 1 3 1 4 . Fast Attach 4 | 3 . . . 1 Attach 1 | . . . 1 . Detach . | . . . . . Swap . | . . . . . Drop 4 | . . . 4 . Fire . | . . . . . Melee 1 | . . . 1 . Ram 5 | . . . . 5 Kick . | . . . . . Crush . | . . . . . Escape Stasis . | . . . . . Rewire . | . . . . . Trap . | . . . . . Miscellaneous . | . . . . . Route ------- -11/Scrapyard -10/Materials -10/Mines -9/Materials -9/Mines (discovered 1 exit: [*Mat]) History --------- Turn | Location | Event 7 | -11/Scrapyard | Discovered new exit (range 16) 41 | -11/Scrapyard | Entered Materials 96 | -10/Materials | Discovered new exit (range 13) 105 | -10/Materials | Entered Mines 130 | -10/Mines | Learned location of Storage (-7) 185 | -10/Mines | A weapon hastily lodged in a ceiling crevice suddenly fell to the ground 194 | -10/Mines | Discovered new exit (range 8) 219 | -10/Mines | Entered Materials 219 | -9/Materials | Evolved 2 slots: Utility x2 269 | -9/Materials | Discovered new exit (range 12) 276 | -9/Materials | Entered Mines 301 | -9/Mines | Assembled infested the area 318 | -9/Mines | Build established: Mutant 332 | -9/Mines | Discovered new exit (range 14) 338 | -9/Mines | Core integrity fell below 50% 368 | -9/Mines | Lost 3 parts (2n1w) 431 | -9/Mines | Core integrity fell below 20% 436 | -9/Mines | Destroyed by S-10 Pest with Light Assault Rifle Last Messages --------------- 00335_ Lgt. Treads destroyed. 00336_ Acquired Cmb. Airjet. 00337_ Lgt. Treads destroyed. 00338_ The unstable cave ceiling collapses. 00340_ as-45665 destroyed. 00340_ R-06 Scavenger destroyed. 00353_ Searching scrap... 00353_ Found 39 Matter. 00353_ Found Lrg. Battery. 00353_ Found 38 Matter. 00354_ Acquired 38 matter. 00354_ Acquired 39 matter. 00354_ K-01 Serf collects debris. 00390_ 3AHC,CO|GBKKUO1OINDADKH&8GHZQF<5 L 00400_ K-01 Serf collects debris. 00427_ Cmb. Airjet destroyed. 00432_ C-30 ARC bursts open, deploying its payload. 00432_ G-47 Trooper unfolds itself. 00432_ G-34 Mercenary unfolds itself. 00435_ K-01 Serf collects debris. Map ----- +----------------------------------------------------+ | ?# #?# #??????????????????????????????????????? | | ?# !#?# #??????????????????????????????????????? | | ?# #?# #??????????????????????????????????????? | | ?# ### #??????????????????????????????????????? | | ?# #??????????????????????????????????????? | | ?# #####??????????????????????????????????????? | | ?# #??????????????????????????????????????????? | | ?# #??????????????????????????????????????????? | | ?# #???????????????????????????????#####??????? | | ?# #??????????????????????????????## ##?????? | | ?# #######????????????????????????# ###???? | | ?# #????????????????????????# ##??? | | ## ##### #?????????????????#####???# #??? | | #??????????????????????## #?## #??? | | #???????###???????????## ## #???? | | #?????? #???????????# #???? | | #??????# #???????????# #???? | | ##??????# #???????????## #??? | | #####??????## ########?????## ## #?? | | ??????????## t ## ###????##### ##?# #?? | | ??????????# ##???????## #???# ##?? | | ?????????## #????????# #????##??? | | ########## #????????# #????????? | | """ ##???????## #????????? | | ########## """ ####?????## ##???????? | | ?????????# """ @ ######## ##??????? | | ?????????## s## #??????? | | ??????????## s #??????? | | ??## ??????## k #??????? | | ###### s ##??????? | | ##???????? | | ### g ######????????? | | ####### ##?##%g ### ##?????????????? | | ? ???????????# #???# ##?####??????????????? | | ?????????????## #??# #????????????????????? | | ????????###### #?# #???????????????????? | | ????????# ##?# #??????????????????? | | ???????# #??## #?????????????????? | | ???????# #???## #?????????????????? | | ???????## ##????## ##?????????????????? | | ????????########??????## ##??????????????????? | | ????????????????????????####???????????????????? | | ???????????????????????????????????????????????? | | | | | | | | | | | | | | | +----------------------------------------------------+ Best States ------------- Heat Dissipation 28 Energy Generation 5 Energy Capacity 125 Matter Stores 300 Matter Capacity 300 Sight Range 16 Terrain Scan Density 10 Evasion (%) 50 Recoil Reduction 1 Item Schematics ----------------- None Robot Schematics ------------------ None Fabricated ------------ Nothing Repaired ---------- Nothing Studied --------- None Alien Tech Used ----------------- None Achievements -------------- None Challenges ------------ None Game ------ Seed GravmagAntimatterCompressor Manual? 0 Play Time 00:09:39 Cumulative 362.8 hours Start 2026.09.09 @ 22:49:34 End 2026.09.09 @ 22:58:59 Sessions 1 Manual Loads 0 Difficulty Rogue Special Mode None Game No. 149 Rogue 149 Adventurer 0 Explorer 0 Win Type - Total 37 Types 12/5/7/2/1/1/3/2/2/2 Lore% 85 Gallery% 80 Achievement% 76 Wizard Run 0 Options --------- Layout 0 ASCII 0 Keyboard 1 Movement Vi Keybinds 0 Fullscreen 2 Font 24/Smallcaps Map View 76x50 Zoom Use 0% Tactical HUD 1 Map Filters NONE Filters NONE Steam 1 RUN: 31c14605-3367-4502-9ad5-5e73222bffdd